fUST/lending_fUST_20250724
["ID","MTS","AMOUNT","RATE_DAILY","PERIOD"]
[374514252,1753332656429,-1375.75,0.00022191,2]
[374514253,1753332656445,-464.72,0.00022191,2]
[374514254,1753332656455,-1318.69,0.00022191,2]
[374514255,1753332656464,-460.0,0.00022191,2]
[374514256,1753332656474,-460.0,0.00022191,2]
[374514257,1753332656484,-460.0,0.00022191,2]
[374514258,1753332656495,-1140.52,0.00022191,2]
[374514259,1753332656505,-506.71,0.00022191,2]
[374514260,1753332656515,-460.0,0.00022191,2]
[374514261,1753332656526,-460.0,0.00022191,2]
[374514262,1753332656535,-923.03,0.00022191,2]
[374514263,1753332656545,-523.34,0.00022191,2]
[374514264,1753332656555,-460.0,0.00022191,2]
[374514265,1753332656565,-1452.54,0.00022191,2]
[374514266,1753332656574,-476.81,0.00022191,2]
[374514267,1753332656584,-1607.23,0.00022191,2]
[374514268,1753332656594,-859.13,0.00022191,2]
[374514269,1753332656604,-460.0,0.00022191,2]
[374514270,1753332656613,-151.0,0.00022191,7]
[374514271,1753332656623,-460.0,0.00022191,2]
[374514272,1753332656633,-1245.13,0.000222,7]
[374514273,1753332656643,-327.68320537,0.0002221,6]
[374514274,1753332656652,-1627.9,0.00022351,5]
[374514275,1753332656661,-154.0523179,0.00022356,2]
[374514276,1753332656671,-153.0,0.00022356,2]
[374514277,1753332656852,-153.0,0.00022356,2]
[374514278,1753332656864,-153.0,0.00022356,2]
[374514279,1753332656874,-153.0,0.00022356,2]
[374514280,1753332656886,-154.70002975,0.00022365,2]
[374514281,1753332656896,-327.68320537,0.00022417,7]
[374514282,1753332656906,-535.7,0.00022465,2]
[374514283,1753332656915,-716.83,0.00022465,2]
[374514284,1753332656924,-886.63,0.00022465,2]
[374514285,1753332656934,-460.0,0.00022465,2]
[374514286,1753332656943,-460.0,0.00022465,2]
[374514287,1753332656953,-3926.45,0.00022465,2]
[374514288,1753332656962,-460.0,0.00022465,2]
[374514289,1753332656972,-3317.41,0.00022465,2]
[374514290,1753332656981,-568.91,0.00022465,2]
[374514291,1753332656991,-886.59,0.00022465,2]
[374514292,1753332657000,-460.0,0.00022465,2]
[374514293,1753332657009,-487.35,0.00022465,2]
[374514294,1753332657019,-460.0,0.00022465,2]
[374514295,1753332657028,-460.0,0.00022465,2]
[374514296,1753332657037,-460.0,0.00022465,2]
[374514297,1753332657047,-1394.65,0.00022465,2]
[374514298,1753332657056,-460.0,0.00022465,2]
[374514299,1753332657065,-604.2,0.00022465,2]
[374514300,1753332657075,-608.57,0.00022465,2]
[374514301,1753332657087,-327.93645313,0.00022465,2]
[374514302,1753332657097,-462.26,0.00022465,2]
[374514303,1753332657106,-821.0,0.00022465,2]
[374514304,1753332657115,-151.0,0.00022465,7]
[374514305,1753332657124,-460.0,0.00022465,2]
[374514306,1753332657134,-2673.29,0.00022465,2]
[374514307,1753332657144,-460.0,0.00022465,2]
[374514308,1753332657154,-1375.75,0.00022465,2]
[374514309,1753332657164,-464.72,0.00022465,2]
[374514310,1753332657173,-1318.69,0.00022465,2]
[374514311,1753332657183,-460.0,0.00022465,2]
[374514312,1753332657192,-460.0,0.00022465,2]
[374514313,1753332657202,-460.0,0.00022465,2]
[374514314,1753332657211,-1140.52,0.00022465,2]
[374514315,1753332657222,-506.71,0.00022465,2]
[374514316,1753332657231,-460.0,0.00022465,2]
[374514317,1753332657242,-480.8920689,0.00022465,2]
[374514318,1753332657253,-923.03,0.00022465,2]
[374514319,1753332657262,-523.34,0.00022465,2]
[374514320,1753332657271,-460.0,0.00022465,2]
[374514321,1753332657281,-1694.72,0.00022465,2]
[374514322,1753332657290,-1452.54,0.00022465,2]
[374514323,1753332657300,-476.81,0.00022465,2]
[374514324,1753332657310,-1607.23,0.00022465,2]
[374514325,1753332657320,-859.13,0.00022465,2]
[374514326,1753332657330,-460.0,0.00022465,2]
[374514327,1753332657343,-460.0,0.00022465,2]
[374514328,1753332657353,-587.0,0.00022469,2]
[374514329,1753332657367,-151.0,0.00022486,7]
[374514330,1753332657376,-452.95752278,0.00022531,2]
[374514331,1753332657385,-574.612909,0.00022603,2]
[374514332,1753332657394,-327.68320537,0.00022624,7]
[374514333,1753332657405,-522.25,0.00022679,4]
[374514334,1753332657414,-1627.9,0.00022715,5]
[374514335,1753332657424,-535.7,0.00022739,2]
[374514336,1753332657433,-716.83,0.00022739,2]
[374514337,1753332657448,-886.63,0.00022739,2]
[374514338,1753332657458,-460.0,0.00022739,2]
[374514339,1753332657467,-460.0,0.00022739,2]
[374514340,1753332657477,-3926.45,0.00022739,2]
[374514341,1753332657486,-460.0,0.00022739,2]
[374514342,1753332657495,-3317.41,0.00022739,2]
[374514343,1753332657505,-568.91,0.00022739,2]
[374514344,1753332657515,-886.59,0.00022739,2]
[374514345,1753332657524,-460.0,0.00022739,2]
[374514346,1753332657533,-487.35,0.00022739,2]
[374514347,1753332657542,-460.0,0.00022739,2]
[374514348,1753332657551,-460.0,0.00022739,2]
[374514349,1753332657560,-460.0,0.00022739,2]
[374514350,1753332657569,-1394.65,0.00022739,2]
[374514351,1753332657579,-460.0,0.00022739,2]
[374514352,1753332657591,-604.2,0.00022739,2]
[374514353,1753332657600,-608.57,0.00022739,2]
[374514354,1753332657609,-462.26,0.00022739,2]
[374514355,1753332657619,-821.0,0.00022739,2]
[374514356,1753332657627,-460.0,0.00022739,2]
[374514357,1753332657637,-2673.29,0.00022739,2]
[374514358,1753332657647,-460.0,0.00022739,2]
[374514359,1753332657656,-1375.75,0.00022739,2]
[374514360,1753332657666,-464.72,0.00022739,2]
[374514361,1753332657675,-1318.69,0.00022739,2]
[374514362,1753332657685,-460.0,0.00022739,2]
[374514363,1753332657694,-460.0,0.00022739,2]
[374514364,1753332657703,-460.0,0.00022739,2]
[374514365,1753332657712,-1140.52,0.00022739,2]
[374514366,1753332657722,-506.71,0.00022739,2]
[374514367,1753332657731,-460.0,0.00022739,2]
[374514368,1753332657741,-923.03,0.00022739,2]
[374514369,1753332657751,-523.34,0.00022739,2]
[374514370,1753332657760,-460.0,0.00022739,2]
[374514371,1753332657770,-1452.54,0.00022739,2]
[374514372,1753332657780,-476.81,0.00022739,2]
[374514373,1753332657789,-1607.23,0.00022739,2]
[374514374,1753332657799,-859.13,0.00022739,2]
[374514375,1753332657809,-460.0,0.00022739,2]
[374514376,1753332657819,-150.0,0.00022758,2]
[374514377,1753332657831,-522.25,0.00022779,5]
[374514378,1753332657843,-327.68320537,0.00022831,8]
[374514379,1753332657852,-458.22,0.00022877,2]
[374514380,1753332657861,-522.25,0.00022879,3]
[374514381,1753332657870,-153.576449,0.0002295,2]
[374514382,1753332657880,-522.25,0.00022979,3]
[374514383,1753332657889,-1373.54,0.00023,2]
[374514384,1753332657899,-150.0,0.00023,10]
[374514385,1753332657908,-160.0,0.00023,2]
[374514386,1753332657918,-535.7,0.00023013,2]
[374514387,1753332657927,-716.83,0.00023013,2]
[374514388,1753332657937,-886.63,0.00023013,2]
[374514389,1753332657946,-460.0,0.00023013,2]
[374514390,1753332657957,-151.0,0.00023013,7]
[374514391,1753332657967,-151.0,0.00023013,7]
[374514392,1753332657976,-151.0,0.00023013,7]
[374514393,1753332657986,-460.0,0.00023013,2]
[374514394,1753332657995,-3926.45,0.00023013,2]
[374514395,1753332658005,-460.0,0.00023013,2]
[374514396,1753332658014,-151.0,0.00023013,7]
[374514397,1753332658023,-3317.41,0.00023013,2]
[374514398,1753332658033,-151.0,0.00023013,7]
[374514399,1753332658043,-568.91,0.00023013,2]
[374514400,1753332658052,-151.0,0.00023013,7]
[374514401,1753332658061,-886.59,0.00023013,2]
[374514402,1753332658070,-209.928903,0.00023013,7]
[374514403,1753332658080,-209.928903,0.00023013,7]
[374514404,1753332658091,-460.0,0.00023013,2]
[374514405,1753332658101,-487.35,0.00023013,2]
[374514406,1753332658110,-460.0,0.00023013,2]
[374514407,1753332658119,-460.0,0.00023013,2]
[374514408,1753332658128,-1394.65,0.00023013,2]
[374514409,1753332658137,-460.0,0.00023013,2]
[374514410,1753332658146,-604.2,0.00023013,2]
[374514411,1753332658155,-608.57,0.00023013,2]
[374514412,1753332658164,-462.26,0.00023013,2]
[374514413,1753332658173,-821.0,0.00023013,2]
[374514414,1753332658184,-460.0,0.00023013,2]
[374514415,1753332658194,-2673.29,0.00023013,2]
[374514416,1753332658204,-460.0,0.00023013,2]
[374514417,1753332658213,-1375.75,0.00023013,2]
[374514418,1753332658225,-464.72,0.00023013,2]
[374514419,1753332658234,-1318.69,0.00023013,2]
[374514420,1753332658246,-460.0,0.00023013,2]
[374514421,1753332658256,-460.0,0.00023013,2]
[374514422,1753332658267,-460.0,0.00023013,2]
[374514423,1753332658277,-1140.52,0.00023013,2]
[374514424,1753332658287,-506.71,0.00023013,2]
[374514425,1753332658297,-460.0,0.00023013,2]
[374514426,1753332658307,-923.03,0.00023013,2]
[374514427,1753332658316,-523.34,0.00023013,2]
[374514428,1753332658326,-460.0,0.00023013,2]
[374514429,1753332658335,-1452.54,0.00023013,2]
[374514430,1753332658346,-476.81,0.00023013,2]
[374514431,1753332658355,-1607.23,0.00023013,2]
[374514432,1753332658368,-859.13,0.00023013,2]
[374514433,1753332658378,-460.0,0.00023013,2]
[374514434,1753332658387,-156.0,0.00023014,7]
[374514435,1753332658397,-558.0,0.00023014,2]
[374514436,1753332658407,-493.0,0.00023014,2]
[374514437,1753332658415,-151.0,0.00023014,2]
[374514438,1753332658425,-151.0,0.00023014,2]
[374514439,1753332658437,-327.68320537,0.00023038,8]
[374514440,1753332658446,-168.0,0.00023055,2]
[374514441,1753332658456,-239.84119403,0.00023074,2]
[374514442,1753332658465,-522.25,0.00023079,3]
[374514443,1753332658475,-1627.9,0.0002308,6]
[374514444,1753332658484,-168.0,0.00023108,2]
[374514445,1753332658493,-153.0,0.00023178,2]
[374514446,1753332658503,-153.0,0.00023178,2]
[374514447,1753332658513,-153.0,0.00023178,2]
[374514448,1753332658523,-153.0,0.00023178,2]
[374514449,1753332658532,-153.0,0.00023178,2]
[374514450,1753332658542,-522.25,0.00023179,3]
[374514451,1753332658551,-151.0,0.00023179,7]
[374514452,1753332658561,-12750.83,0.000232,7]
[374514453,1753332658571,-327.68320537,0.00023245,8]
[374514454,1753332658580,-522.25,0.00023279,6]
[374514455,1753332658592,-535.7,0.00023287,2]
[374514456,1753332658601,-716.83,0.00023287,2]
[374514457,1753332658611,-886.63,0.00023287,2]
[374514458,1753332658620,-151.0,0.00023287,7]
[374514459,1753332658630,-460.0,0.00023287,2]
[374514460,1753332658639,-430.73147292,0.00023287,2]
[374514461,1753332658648,-3926.45,0.00023287,2]
[374514462,1753332658658,-460.0,0.00023287,2]
[374514463,1753332658667,-3317.41,0.00023287,2]
[374514464,1753332658676,-568.91,0.00023287,2]
[374514465,1753332658686,-886.59,0.00023287,2]
[374514466,1753332658695,-460.0,0.00023287,2]
[374514467,1753332658705,-487.35,0.00023287,2]
[374514468,1753332658715,-460.0,0.00023287,2]
[374514469,1753332658725,-460.0,0.00023287,2]
[374514470,1753332658734,-1394.65,0.00023287,2]
[374514471,1753332658743,-460.0,0.00023287,2]
[374514472,1753332658752,-604.2,0.00023287,2]
[374514473,1753332658761,-608.57,0.00023287,2]
[374514474,1753332658771,-462.26,0.00023287,2]
[374514475,1753332658780,-821.0,0.00023287,2]
[374514476,1753332658789,-219.89075588,0.00023287,2]
[374514477,1753332658799,-2673.29,0.00023287,2]
[374514478,1753332658808,-460.0,0.00023287,2]
[374514479,1753332658818,-1375.75,0.00023287,2]
[374514480,1753332658827,-464.72,0.00023287,2]
[374514481,1753332658839,-1318.69,0.00023287,2]
[374514482,1753332658848,-504.10032192,0.00023287,2]
[374514483,1753332658858,-460.0,0.00023287,2]
[374514484,1753332658868,-460.0,0.00023287,2]
[374514485,1753332658877,-1140.52,0.00023287,2]
[374514486,1753332658887,-506.71,0.00023287,2]
[374514487,1753332658897,-364.07228238,0.00023287,2]
[374514488,1753332658907,-923.03,0.00023287,2]
[374514489,1753332658917,-523.34,0.00023287,2]
[374514490,1753332658927,-460.0,0.00023287,2]
[374514491,1753332658936,-1452.54,0.00023287,2]
[374514492,1753332658946,-476.81,0.00023287,2]
[374514493,1753332658956,-1607.23,0.00023287,2]
[374514494,1753332658965,-859.13,0.00023287,2]
[374514495,1753332658975,-460.0,0.00023287,2]
[374514496,1753332658985,-558.0,0.00023288,2]
[374514497,1753332658994,-493.0,0.00023288,2]
[374514498,1753332659004,-151.0,0.00023288,2]
[374514499,1753332659014,-1245.13,0.000233,7]
[374514500,1753332659023,-168.0,0.00023363,2]
[374514501,1753332659032,-522.25,0.00023379,4]
[374514502,1753332659042,-1627.9,0.00023444,6]
[374514503,1753332659051,-327.68320537,0.00023452,9]
[374514504,1753332659061,-452.95752278,0.00023461,2]
[374514505,1753332659071,-522.25,0.00023479,4]
[374514506,1753332659080,-388.882292,0.00023493,8]
[374514507,1753332659091,-168.0,0.00023548,2]
[374514508,1753332659100,-535.7,0.00023561,2]
[374514509,1753332659110,-716.83,0.00023561,2]
[374514510,1753332659119,-886.63,0.00023561,2]
[374514511,1753332659129,-460.0,0.00023561,2]
[374514512,1753332659138,-3926.45,0.00023561,2]
[374514513,1753332659147,-460.0,0.00023561,2]
[374514514,1753332659157,-3317.41,0.00023561,2]
[374514515,1753332659167,-568.91,0.00023561,2]
[374514516,1753332659177,-886.59,0.00023561,2]
[374514517,1753332659186,-460.0,0.00023561,2]
[374514518,1753332659196,-487.35,0.00023561,2]
[374514519,1753332659205,-460.0,0.00023561,2]
[374514520,1753332659215,-460.0,0.00023561,2]
[374514521,1753332659224,-1394.65,0.00023561,2]
[374514522,1753332659234,-460.0,0.00023561,2]
[374514523,1753332659243,-604.2,0.00023561,2]
[374514524,1753332659252,-608.57,0.00023561,2]
[374514525,1753332659262,-462.26,0.00023561,2]
[374514526,1753332659271,-821.0,0.00023561,2]
[374514527,1753332659281,-2673.29,0.00023561,2]
[374514528,1753332659290,-460.0,0.00023561,2]
[374514529,1753332659300,-1375.75,0.00023561,2]
[374514530,1753332659310,-464.72,0.00023561,2]
[374514531,1753332659320,-1318.69,0.00023561,2]
[374514532,1753332659329,-597.18720021,0.00023561,2]
[374514533,1753332659339,-460.0,0.00023561,2]
[374514534,1753332659348,-1140.52,0.00023561,2]
[374514535,1753332659362,-506.71,0.00023561,2]
[374514536,1753332659371,-923.03,0.00023561,2]
[374514537,1753332659380,-523.34,0.00023561,2]
[374514538,1753332659390,-460.0,0.00023561,2]
[374514539,1753332659400,-1452.54,0.00023561,2]
[374514540,1753332659410,-476.81,0.00023561,2]
[374514541,1753332659419,-1607.23,0.00023561,2]
[374514542,1753332659429,-859.13,0.00023561,2]
[374514543,1753332659439,-460.0,0.00023561,2]
[374514544,1753332659448,-558.0,0.00023562,2]
[374514545,1753332659457,-493.0,0.00023562,2]
[374514546,1753332659467,-198.0,0.00023562,2]
[374514547,1753332659480,-250.0,0.0002357,2]
[374514548,1753332659491,-522.25,0.00023579,3]
[374514549,1753332659500,-2761.25,0.000236,7]
[374514550,1753332659509,-151.0,0.000236,7]
[374514551,1753332659519,-2200.0,0.00023601,2]
[374514552,1753332659529,-327.68320537,0.00023659,9]
[374514553,1753332659538,-522.25,0.00023679,4]
[374514554,1753332659547,-150.0,0.00023743,2]
[374514555,1753332659557,-800.0,0.00023756,2]
[374514556,1753332659566,-458.22,0.00023768,2]
[374514557,1753332659575,-522.25,0.00023779,4]
[374514558,1753332659585,-605.87863079,0.00023802,12]
[374514559,1753332659595,-1627.9,0.00023808,6]
[374514560,1753332659604,-535.7,0.00023835,2]
[374514561,1753332659614,-716.83,0.00023835,2]
[374514562,1753332659623,-151.0,0.00023835,7]
[374514563,1753332659632,-886.63,0.00023835,2]
[374514564,1753332659641,-151.0,0.00023835,7]
[374514565,1753332659651,-460.0,0.00023835,2]
[374514566,1753332659661,-151.0,0.00023835,7]
[374514567,1753332659670,-3926.45,0.00023835,2]
[374514568,1753332659679,-460.0,0.00023835,2]
[374514569,1753332659688,-3317.41,0.00023835,2]
[374514570,1753332659699,-568.91,0.00023835,2]
[374514571,1753332659709,-886.59,0.00023835,2]
[374514572,1753332659719,-171.63443481,0.00023835,2]
[374514573,1753332659728,-487.35,0.00023835,2]
[374514574,1753332659738,-460.0,0.00023835,2]
[374514575,1753332659747,-460.0,0.00023835,2]
[374514576,1753332659756,-1394.65,0.00023835,2]
[374514577,1753332659765,-460.0,0.00023835,2]
[374514578,1753332659775,-604.2,0.00023835,2]
[374514579,1753332659784,-608.57,0.00023835,2]
[374514580,1753332659793,-462.26,0.00023835,2]
[374514581,1753332659802,-821.0,0.00023835,2]
[374514582,1753332659811,-151.0,0.00023835,7]
[374514583,1753332659821,-2673.29,0.00023835,2]
[374514584,1753332659830,-460.0,0.00023835,2]
[374514585,1753332659841,-1375.75,0.00023835,2]
[374514586,1753332659850,-464.72,0.00023835,2]
[374514587,1753332659860,-1318.69,0.00023835,2]
[374514588,1753332659870,-460.0,0.00023835,2]
[374514589,1753332659880,-1140.52,0.00023835,2]
[374514590,1753332659890,-506.71,0.00023835,2]
[374514591,1753332659901,-923.03,0.00023835,2]
[374514592,1753332659911,-523.34,0.00023835,2]
[374514593,1753332659921,-460.0,0.00023835,2]
[374514594,1753332659930,-1452.54,0.00023835,2]
[374514595,1753332659940,-476.81,0.00023835,2]
[374514596,1753332659949,-1607.23,0.00023835,2]
[374514597,1753332659959,-859.13,0.00023835,2]
[374514598,1753332659968,-460.0,0.00023835,2]
[374514599,1753332659978,-558.0,0.00023836,2]
[374514600,1753332659988,-493.0,0.00023836,2]
[374514601,1753332659998,-327.68320537,0.00023866,10]
[374514602,1753332660007,-4000.0,0.00023876,4]
[374514603,1753332660018,-522.25,0.00023879,7]
[374514604,1753332660145,-151.0,0.0002389,7]
[374514605,1753332660156,-700.77052702,0.0002389,2]
[374514606,1753332660166,-946.43325392,0.0002389,2]
[374514607,1753332660176,-160.56,0.0002389,4]
[374514608,1753332660186,-160.11,0.0002389,4]
[374514609,1753332660196,-728.50385731,0.000239,2]
[374514610,1753332660205,-153.576449,0.00023925,2]
[374514611,1753332660216,-153.576449,0.00023925,2]
[374514612,1753332660226,-153.576449,0.0002395,7]
[374514613,1753332660236,-153.576449,0.0002395,7]
[374514614,1753332660246,-500.0,0.00023973,2]
[374514615,1753332660255,-500.0,0.00023973,2]
[374514616,1753332660265,-201.92082933,0.00023973,2]
[374514617,1753332660274,-522.25,0.00023979,3]
[374514618,1753332660284,-2533.92583847,0.0002399,2]
[374514619,1753332660293,-363429.67668736,0.0002399,5]
[374514620,1753332660373,-287.50800003,0.0002399,5]
[374514621,1753332660386,-555.2,0.0002399,5]
[374516134,1753332889080,160.00680987,0.000186,120]
[374517684,1753332972639,-150.0,0.00018361,2]
[374517685,1753332972661,-158.96059562,0.00018532,2]
[374517686,1753332972681,-516.34078317,0.00018719,2]
[374517687,1753332972701,-185.45987389,0.00018807,2]
[374517688,1753332972722,-300.0,0.00018876,2]
[374517689,1753332972743,-300.0,0.00018877,2]
[374517690,1753332972764,-300.0,0.00018877,2]
[374517691,1753332972785,-300.0,0.00018877,2]
[374517692,1753332972806,-300.0,0.00018877,2]
[374517693,1753332972828,-1200.0,0.00018877,2]
[374517694,1753332972851,-10416.53002944,0.00018878,2]
[374517696,1753332972875,-500.0,0.00018906,2]
[374517697,1753332972899,-500.0,0.00018906,2]
[374517699,1753332972923,-500.0,0.00018906,2]
[374517700,1753332972944,-303.33689549,0.00018906,2]
[374517701,1753332972966,-500.0,0.00018906,2]
[374517703,1753332972988,-367.97998982,0.00018906,2]
[374517704,1753332973009,-500.0,0.00018906,2]
[374517705,1753332973031,-500.0,0.00018906,2]
[374517707,1753332973052,-322.75305128,0.00018906,2]
[374517708,1753332973072,-500.0,0.00018906,2]
[374517710,1753332973096,-477.05331532,0.00018906,2]
[374517711,1753332973117,-510.50988597,0.00018906,2]
[374517713,1753332973139,-500.0,0.00018906,2]
[374517714,1753332973161,-500.0,0.00018906,2]
[374517715,1753332973184,-500.0,0.00018906,2]
[374517717,1753332973206,-500.0,0.00018906,2]
[374517718,1753332973229,-500.0,0.00018906,2]
[374517720,1753332973251,-500.0,0.00018906,2]
[374517721,1753332973273,-500.0,0.00018906,2]
[374517722,1753332973296,-500.0,0.00018906,2]
[374517724,1753332973318,-500.0,0.00018906,2]
[374517725,1753332973340,-500.0,0.00018906,2]
[374517726,1753332973363,-500.0,0.00018906,2]
[374517728,1753332973387,-500.0,0.00018906,2]
[374517729,1753332973409,-500.0,0.00018906,2]
[374517731,1753332973432,-500.0,0.00018906,2]
[374517732,1753332973454,-500.0,0.00018906,2]
[374517733,1753332973476,-500.0,0.00018906,2]
[374517735,1753332973501,-500.0,0.00018906,2]
[374517736,1753332973523,-500.0,0.00018906,2]
[374517738,1753332973546,-500.0,0.00018906,2]
[374517739,1753332973569,-500.0,0.00018906,2]
[374517741,1753332973591,-391.07558,0.00018906,2]
[374519716,1753333188998,-305.3606595,0.00018014,2]
[374519717,1753333189020,-186.41077286,0.00018339,2]
[374519718,1753333189043,-310.10627398,0.00018716,2]
[374519719,1753333189065,-300.0,0.00018904,2]
[374519720,1753333189088,-164.11703504,0.00018905,2]
[374519721,1753333189109,-500.0,0.00018905,2]
[374519722,1753333189131,-500.0,0.00018905,2]
[374519723,1753333189153,-500.0,0.00018905,2]
[374519724,1753333189175,-500.0,0.00018905,2]
[374519725,1753333189197,-500.0,0.00018905,2]
[374519726,1753333189218,-500.0,0.00018905,2]
[374519727,1753333189240,-500.0,0.00018905,2]
[374519728,1753333189262,-500.0,0.00018905,2]
[374519729,1753333189285,-500.0,0.00018905,2]
[374519730,1753333189306,-500.0,0.00018905,2]
[374519731,1753333189328,-500.0,0.00018905,2]
[374519732,1753333189349,-515.43373817,0.00018905,2]
[374519733,1753333189370,-500.0,0.00018905,2]
[374519734,1753333189394,-500.0,0.00018905,2]
[374519735,1753333189416,-500.0,0.00018905,2]
[374519736,1753333189438,-500.0,0.00018905,2]
[374519737,1753333189458,-718.57152045,0.00018906,2]
[374519757,1753333214940,208.912297,0.00013699,2]
[374519782,1753333317920,-211.7968111,0.00018244,2]
[374519783,1753333317945,-150.0,0.00018428,2]
[374519784,1753333317966,-302.54622906,0.000189,2]
[374519785,1753333317987,-201.92082932,0.00018906,2]
[374519786,1753333318008,-3644.91188721,0.00019078,2]
[374519787,1753333318028,-302.54622906,0.00019089,2]
[374519788,1753333318049,-160.0,0.00019165,2]
[374519789,1753333318070,-1200.0,0.00019177,2]
[374519790,1753333318091,-300.0,0.00019177,2]
[374519791,1753333318113,-449.18332914,0.00019177,2]
[374519792,1753333318136,-500.0,0.00019177,2]
[374519793,1753333318158,-390.60374869,0.00019177,2]
[374519794,1753333318179,-460.0,0.00019178,2]
[374519795,1753333318201,-460.0,0.00019178,2]
[374519796,1753333318223,-460.0,0.00019178,2]
[374519797,1753333318244,-460.0,0.00019178,2]
[374519798,1753333318265,-460.0,0.00019178,2]
[374519799,1753333318287,-460.0,0.00019178,2]
[374519800,1753333318309,-460.0,0.00019178,2]
[374519801,1753333318495,-460.0,0.00019178,2]
[374519802,1753333318518,-508.19039565,0.00019178,2]
[374519803,1753333318540,-460.0,0.00019178,2]
[374519804,1753333318565,-460.0,0.00019178,2]
[374519805,1753333318588,-460.0,0.00019178,2]
[374519806,1753333318609,-460.0,0.00019178,2]
[374519807,1753333318632,-460.0,0.00019178,2]
[374519808,1753333318652,-466.42093496,0.00019178,2]
[374519809,1753333318674,-460.0,0.00019178,2]
[374519810,1753333318696,-460.0,0.00019178,2]
[374519811,1753333318717,-460.0,0.00019178,2]
[374519812,1753333318739,-460.0,0.00019178,2]
[374519813,1753333318760,-460.0,0.00019178,2]
[374519814,1753333318780,-254.87851502,0.00019178,2]
[374519815,1753333318801,-466.7650482,0.00019178,2]
[374519816,1753333318824,-460.0,0.00019178,2]
[374519817,1753333318846,-541.34404419,0.00019178,2]
[374519818,1753333318867,-460.0,0.00019178,2]
[374519819,1753333318889,-500.0,0.00019178,2]
[374519820,1753333318911,-516.4272939,0.00019178,2]
[374519821,1753333318932,-460.0,0.00019178,2]
[374519822,1753333318952,-460.0,0.00019178,2]
[374519823,1753333318972,-461.6274339,0.00019178,2]
[374519824,1753333318992,-463.82476129,0.00019178,2]
[374519825,1753333319013,-460.0,0.00019178,2]
[374519826,1753333319037,-460.0,0.00019178,2]
[374519827,1753333319058,-461.07111225,0.00019178,2]
[374519828,1753333319081,-460.0,0.00019178,2]
[374519829,1753333319104,-460.0,0.00019178,2]
[374519830,1753333319126,-460.0,0.00019178,2]
[374519831,1753333319148,-460.0,0.00019178,2]
[374519832,1753333319171,-460.0,0.00019178,2]
[374519833,1753333319192,-460.0,0.00019178,2]
[374519834,1753333319212,-460.0,0.00019178,2]
[374519835,1753333319233,-460.0,0.00019178,2]
[374519836,1753333319254,-460.0,0.00019178,2]
[374519837,1753333319275,-462.45359486,0.00019178,2]
[374519838,1753333319297,-460.0,0.00019178,2]
[374519839,1753333319319,-460.0,0.00019178,2]
[374519840,1753333319340,-460.0,0.00019178,2]
[374519841,1753333319362,-460.0,0.00019178,2]
[374519842,1753333319383,-460.0,0.00019178,2]
[374519843,1753333319403,-460.0,0.00019178,2]